fUST/lending_fUST_20240509
["ID","MTS","AMOUNT","RATE_DAILY","PERIOD"]
[326651196,1715199088762,-4309.74,0.00028767,2]
[326651197,1715199088772,-579.32,0.00028767,2]
[326651198,1715199088781,-1439.54,0.00028767,2]
[326651199,1715199088790,-500.0,0.00028767,2]
[326651200,1715199088800,-2030.56,0.00028767,2]
[326651201,1715199088810,-949.19,0.00028767,2]
[326651202,1715199088819,-402.97152619,0.00028767,2]
[326651203,1715199088828,-500.0,0.00028767,2]
[326651204,1715199088838,-4686.96,0.00028767,2]
[326651205,1715199088848,-7047.1,0.00028767,2]
[326651206,1715199088857,-3516.26,0.00028767,2]
[326651207,1715199088866,-7672.45,0.00028767,2]
[326651208,1715199088875,-559.0,0.00028767,2]
[326651209,1715199088884,-485.76,0.00028767,2]
[326651210,1715199088893,-649.41574458,0.00028767,2]
[326651211,1715199088905,-1159.93,0.00028767,2]
[326651212,1715199088915,-1109.77,0.00028767,2]
[326651213,1715199088924,-808.6,0.00028767,2]
[326651214,1715199088935,-569.29,0.00028767,2]
[326651215,1715199088944,-792.42,0.00028767,2]
[326651216,1715199088953,-500.0,0.00028767,2]
[326651217,1715199088962,-2779.81,0.00028767,2]
[326651218,1715199088973,-20490.02,0.00028767,2]
[326651219,1715199088982,-500.0,0.00028767,2]
[326651220,1715199088991,-800.11,0.00028767,2]
[326651221,1715199089000,-902.39,0.00028767,2]
[326651222,1715199089009,-1308.72,0.00028767,2]
[326651223,1715199089018,-1399.75,0.00028767,2]
[326651224,1715199089028,-664.75,0.00028767,2]
[326651225,1715199089037,-509.7,0.00028767,2]
[326651226,1715199089047,-1252.54,0.00028767,2]
[326651227,1715199089055,-757.25,0.00028767,2]
[326651228,1715199089064,-3456.41,0.00028767,2]
[326651229,1715199089073,-864.02,0.00028767,2]
[326651230,1715199089082,-500.0,0.00028767,2]
[326651231,1715199089092,-970.11,0.00028767,2]
[326651232,1715199089103,-188592.98381366,0.0002877,2]
[326651233,1715199089112,-150.0,0.00028783,2]
[326651234,1715199089122,-300.0,0.000288,2]
[326651235,1715199089131,-300.0,0.000288,2]
[326651236,1715199089140,-1240.45158493,0.000289,2]
[326651237,1715199089149,-335.0,0.00028997,2]
[326651238,1715199089158,-189.32903252,0.00029,2]
[326651239,1715199089168,-844.10744473,0.00029,2]
[326651240,1715199089182,-650.98,0.00029041,2]
[326651241,1715199089191,-574.0,0.00029041,2]
[326651242,1715199089200,-500.0,0.00029041,30]
[326651243,1715199089210,-500.0,0.00029041,2]
[326651244,1715199089221,-571.12,0.00029041,2]
[326651245,1715199089230,-786.55,0.00029041,2]
[326651246,1715199089240,-500.0,0.00029041,2]
[326651247,1715199089251,-601.02,0.00029041,2]
[326651248,1715199089262,-1032.78,0.00029041,2]
[326651249,1715199089272,-2277.28,0.00029041,2]
[326651250,1715199089285,-936.19,0.00029041,2]
[326651251,1715199089294,-899.18,0.00029041,2]
[326651252,1715199089303,-1818.87,0.00029041,2]
[326651253,1715199089313,-1908.19,0.00029041,2]
[326651254,1715199089323,-500.0,0.00029041,2]
[326651255,1715199089332,-500.0,0.00029041,2]
[326651256,1715199089342,-629.42,0.00029041,2]
[326651257,1715199089351,-527.63,0.00029041,2]
[326651258,1715199089362,-500.0,0.00029041,2]
[326651259,1715199089373,-1086.76,0.00029041,2]
[326651260,1715199089382,-530.34,0.00029041,2]
[326651261,1715199089473,-7463.0,0.00029041,2]
[326651262,1715199089482,-950.42,0.00029041,2]
[326651263,1715199089492,-1701.32,0.00029041,2]
[326651264,1715199089501,-997.07,0.00029041,2]
[326651265,1715199089510,-3523.15,0.00029041,2]
[326651266,1715199089519,-505.36,0.00029041,2]
[326651267,1715199089528,-745.46,0.00029041,2]
[326651268,1715199089537,-1757.68,0.00029041,2]
[326651269,1715199089546,-941.12,0.00029041,2]
[326651270,1715199089555,-748.52,0.00029041,2]
[326651271,1715199089566,-2015.2,0.00029041,2]
[326651272,1715199089578,-500.0,0.00029041,2]
[326651273,1715199089588,-4323.66,0.00029041,2]
[326651274,1715199089598,-850.5,0.00029041,2]
[326651275,1715199089607,-4309.74,0.00029041,2]
[326651276,1715199089617,-579.32,0.00029041,2]
[326651277,1715199089627,-1439.54,0.00029041,2]
[326651278,1715199089637,-606.6872913,0.00029041,2]
[326651279,1715199089647,-2030.56,0.00029041,2]
[326651280,1715199089656,-949.19,0.00029041,2]
[326651281,1715199089665,-217.1,0.00029041,2]
[326651282,1715199089675,-4686.96,0.00029041,2]
[326651283,1715199089684,-7047.1,0.00029041,2]
[326651284,1715199089694,-3516.26,0.00029041,2]
[326651285,1715199089703,-7672.45,0.00029041,2]
[326651286,1715199089712,-559.0,0.00029041,2]
[326651287,1715199089723,-1159.93,0.00029041,2]
[326651288,1715199089732,-1109.77,0.00029041,2]
[326651289,1715199089741,-808.6,0.00029041,2]
[326651290,1715199089750,-569.29,0.00029041,2]
[326651291,1715199089759,-792.42,0.00029041,2]
[326651292,1715199089768,-487.48030835,0.00029041,2]
[326651293,1715199089777,-2779.81,0.00029041,2]
[326651294,1715199089786,-20490.02,0.00029041,2]
[326651295,1715199089796,-420.85409249,0.00029041,2]
[326651296,1715199089805,-800.11,0.00029041,2]
[326651297,1715199089814,-902.39,0.00029041,2]
[326651298,1715199089823,-1308.72,0.00029041,2]
[326651299,1715199089832,-1399.75,0.00029041,2]
[326651300,1715199089841,-664.75,0.00029041,2]
[326651301,1715199089851,-509.7,0.00029041,2]
[326651302,1715199089861,-1252.54,0.00029041,2]
[326651303,1715199089871,-3456.41,0.00029041,2]
[326651304,1715199089880,-757.25,0.00029041,2]
[326651305,1715199089889,-864.02,0.00029041,2]
[326651306,1715199089898,-500.0,0.00029041,2]
[326651307,1715199089908,-970.11,0.00029041,2]
[326651308,1715199089917,-150.0,0.00029052,2]
[326651309,1715199089927,-650.98,0.00029315,2]
[326651310,1715199089937,-574.0,0.00029315,2]
[326651311,1715199089946,-587.23586859,0.00029315,30]
[326651312,1715199089955,-500.0,0.00029315,2]
[326651313,1715199089964,-571.12,0.00029315,2]
[326651314,1715199089974,-786.55,0.00029315,2]
[326651315,1715199089983,-572.54601023,0.00029315,2]
[326651316,1715199089992,-601.02,0.00029315,2]
[326651317,1715199090002,-1032.78,0.00029315,2]
[326651318,1715199090011,-2277.28,0.00029315,2]
[326651319,1715199090020,-936.19,0.00029315,2]
[326651320,1715199090029,-899.18,0.00029315,2]
[326651321,1715199090038,-1818.87,0.00029315,2]
[326651322,1715199090048,-1908.19,0.00029315,2]
[326651323,1715199090057,-500.0,0.00029315,2]
[326651324,1715199090066,-500.0,0.00029315,2]
[326651325,1715199090075,-629.42,0.00029315,2]
[326651326,1715199090084,-527.63,0.00029315,2]
[326651327,1715199090094,-500.0,0.00029315,2]
[326651328,1715199090107,-1086.76,0.00029315,2]
[326651329,1715199090116,-530.34,0.00029315,2]
[326651330,1715199090125,-7463.0,0.00029315,2]
[326651331,1715199090134,-950.42,0.00029315,2]
[326651332,1715199090143,-1701.32,0.00029315,2]
[326651333,1715199090152,-997.07,0.00029315,2]
[326651334,1715199090161,-3523.15,0.00029315,2]
[326651335,1715199090170,-505.36,0.00029315,2]
[326651336,1715199090179,-745.46,0.00029315,2]
[326651337,1715199090193,-1757.68,0.00029315,2]
[326651338,1715199090209,-941.12,0.00029315,2]
[326651339,1715199090224,-748.52,0.00029315,2]
[326651340,1715199090239,-2015.2,0.00029315,2]
[326651341,1715199090249,-500.0,0.00029315,2]
[326651342,1715199090263,-4323.66,0.00029315,2]
[326651343,1715199090272,-850.5,0.00029315,2]
[326651344,1715199090282,-4309.74,0.00029315,2]
[326651345,1715199090292,-579.32,0.00029315,2]
[326651346,1715199090302,-1439.54,0.00029315,2]
[326651347,1715199090312,-2030.56,0.00029315,2]
[326651348,1715199090321,-949.19,0.00029315,2]
[326651349,1715199090330,-4686.96,0.00029315,2]
[326651350,1715199090341,-7047.1,0.00029315,2]
[326651351,1715199090350,-3516.26,0.00029315,2]
[326651352,1715199090359,-7672.45,0.00029315,2]
[326651353,1715199090368,-559.0,0.00029315,2]
[326651354,1715199090378,-1159.93,0.00029315,2]
[326651355,1715199090387,-1109.77,0.00029315,2]
[326651356,1715199090396,-808.6,0.00029315,2]
[326651357,1715199090405,-569.29,0.00029315,2]
[326651358,1715199090414,-792.42,0.00029315,2]
[326651359,1715199090423,-2779.81,0.00029315,2]
[326651360,1715199090434,-20490.02,0.00029315,2]
[326651361,1715199090443,-800.11,0.00029315,2]
[326651362,1715199090453,-902.39,0.00029315,2]
[326651363,1715199090462,-1308.72,0.00029315,2]
[326651364,1715199090472,-1399.75,0.00029315,2]
[326651365,1715199090481,-664.75,0.00029315,2]
[326651366,1715199090490,-509.7,0.00029315,2]
[326651367,1715199090500,-1252.54,0.00029315,2]
[326651368,1715199090510,-3456.41,0.00029315,2]
[326651369,1715199090519,-757.25,0.00029315,2]
[326651370,1715199090528,-864.02,0.00029315,2]
[326651371,1715199090538,-500.0,0.00029315,2]
[326651372,1715199090547,-970.11,0.00029315,2]
[326651373,1715199090557,-150.0,0.00029321,2]
[326651374,1715199090565,-306.0,0.00029464,2]
[326651375,1715199090575,-650.98,0.00029589,2]
[326651376,1715199090584,-574.0,0.00029589,2]
[326651377,1715199090593,-500.0,0.00029589,2]
[326651378,1715199090603,-571.12,0.00029589,2]
[326651379,1715199090612,-786.55,0.00029589,2]
[326651380,1715199090621,-601.02,0.00029589,2]
[326651381,1715199090631,-1032.78,0.00029589,2]
[326651382,1715199090641,-2277.28,0.00029589,2]
[326651383,1715199090650,-936.19,0.00029589,2]
[326651384,1715199090670,-899.18,0.00029589,2]
[326651385,1715199090681,-1818.87,0.00029589,2]
[326651386,1715199090691,-1908.19,0.00029589,2]
[326651387,1715199090700,-500.0,0.00029589,2]
[326651388,1715199090709,-500.0,0.00029589,2]
[326651389,1715199090720,-629.42,0.00029589,2]
[326651390,1715199090730,-527.63,0.00029589,2]
[326651391,1715199090739,-500.0,0.00029589,2]
[326651392,1715199090749,-1086.76,0.00029589,2]
[326651393,1715199090758,-530.34,0.00029589,2]
[326651394,1715199090770,-7463.0,0.00029589,2]
[326651395,1715199090779,-950.42,0.00029589,2]
[326651396,1715199090788,-1701.32,0.00029589,2]
[326651397,1715199090798,-997.07,0.00029589,2]
[326651398,1715199090808,-3523.15,0.00029589,2]
[326651399,1715199090817,-505.36,0.00029589,2]
[326651400,1715199090826,-745.46,0.00029589,2]
[326651401,1715199090835,-1757.68,0.00029589,2]
[326651402,1715199090845,-941.12,0.00029589,2]
[326651403,1715199090855,-748.52,0.00029589,2]
[326651404,1715199090864,-2015.2,0.00029589,2]
[326651405,1715199090876,-343.95,0.00029589,2]
[326651406,1715199090886,-4323.66,0.00029589,2]
[326651407,1715199091029,-850.5,0.00029589,2]
[326651408,1715199091040,-4309.74,0.00029589,2]
[326651409,1715199091049,-579.32,0.00029589,2]
[326651410,1715199091059,-1439.54,0.00029589,2]
[326651411,1715199091069,-2030.56,0.00029589,2]
[326651412,1715199091078,-949.19,0.00029589,2]
[326651413,1715199091087,-4686.96,0.00029589,2]
[326651414,1715199091097,-7047.1,0.00029589,2]
[326651415,1715199091108,-3516.26,0.00029589,2]
[326651416,1715199091117,-7672.45,0.00029589,2]
[326651417,1715199091127,-559.0,0.00029589,2]
[326651418,1715199091137,-1159.93,0.00029589,2]
[326651419,1715199091147,-1109.77,0.00029589,2]
[326651420,1715199091157,-808.6,0.00029589,2]
[326651421,1715199091166,-569.29,0.00029589,2]
[326651422,1715199091175,-792.42,0.00029589,2]
[326651423,1715199091184,-2779.81,0.00029589,2]
[326651424,1715199091193,-20490.02,0.00029589,2]
[326651425,1715199091203,-800.11,0.00029589,2]
[326651426,1715199091212,-902.39,0.00029589,2]
[326651427,1715199091222,-1308.72,0.00029589,2]
[326651428,1715199091232,-1399.75,0.00029589,2]
[326651429,1715199091242,-664.75,0.00029589,2]
[326651430,1715199091251,-509.7,0.00029589,2]
[326651431,1715199091266,-1252.54,0.00029589,2]
[326651432,1715199091276,-3456.41,0.00029589,2]
[326651433,1715199091286,-757.25,0.00029589,2]
[326651434,1715199091295,-500.0,0.00029589,2]
[326651435,1715199091306,-864.02,0.00029589,2]
[326651436,1715199091315,-970.11,0.00029589,2]
[326651437,1715199091325,-150.0,0.0002959,2]
[326651438,1715199091336,-20000.0,0.00029598,2]
[326651439,1715199091345,-494.0,0.00029694,2]
[326651440,1715199091356,-150.0,0.00029694,2]
[326651441,1715199091365,-300.0,0.000298,2]
[326651442,1715199091375,-300.0,0.000298,2]
[326651443,1715199091385,-381.4206257,0.0002983,2]
[326651444,1715199091396,-150.0,0.00029859,2]
[326651445,1715199091405,-650.98,0.00029863,2]
[326651446,1715199091415,-574.0,0.00029863,2]
[326651447,1715199091425,-500.0,0.00029863,2]
[326651448,1715199091434,-571.12,0.00029863,2]
[326651449,1715199091443,-786.55,0.00029863,2]
[326651450,1715199091453,-601.02,0.00029863,2]
[326651451,1715199091462,-1032.78,0.00029863,2]
[326651452,1715199091472,-2277.28,0.00029863,2]
[326651453,1715199091481,-936.19,0.00029863,2]
[326651454,1715199091490,-899.18,0.00029863,2]
[326651455,1715199091499,-1818.87,0.00029863,2]
[326651456,1715199091509,-1908.19,0.00029863,2]
[326651457,1715199091520,-628.53987789,0.00029863,2]
[326651458,1715199091529,-500.0,0.00029863,2]
[326651459,1715199091539,-629.42,0.00029863,2]
[326651460,1715199091549,-527.63,0.00029863,2]
[326651461,1715199091558,-552.0646629,0.00029863,2]
[326651462,1715199091567,-1086.76,0.00029863,2]
[326651463,1715199091577,-530.34,0.00029863,2]
[326651464,1715199091586,-7463.0,0.00029863,2]
[326651465,1715199091595,-950.42,0.00029863,2]
[326651466,1715199091604,-1701.32,0.00029863,2]
[326651467,1715199091614,-997.07,0.00029863,2]
[326651468,1715199091623,-3523.15,0.00029863,2]
[326651469,1715199091632,-505.36,0.00029863,2]
[326651470,1715199091642,-745.46,0.00029863,2]
[326651471,1715199091651,-1757.68,0.00029863,2]
[326651472,1715199091660,-941.12,0.00029863,2]
[326651473,1715199091669,-748.52,0.00029863,2]
[326651474,1715199091678,-2015.2,0.00029863,2]
[326651475,1715199091687,-4323.66,0.00029863,2]
[326651476,1715199091697,-850.5,0.00029863,2]
[326651477,1715199091706,-4309.74,0.00029863,2]
[326651478,1715199091715,-579.32,0.00029863,2]
[326651479,1715199091728,-1439.54,0.00029863,2]
[326651480,1715199091739,-2030.56,0.00029863,2]
[326651481,1715199091748,-949.19,0.00029863,2]
[326651482,1715199091758,-4686.96,0.00029863,2]
[326651483,1715199091767,-7047.1,0.00029863,2]
[326651484,1715199091777,-3516.26,0.00029863,2]
[326651485,1715199091787,-7672.45,0.00029863,2]
[326651486,1715199091796,-559.0,0.00029863,2]
[326651487,1715199091806,-1159.93,0.00029863,2]
[326651488,1715199091815,-1109.77,0.00029863,2]
[326651489,1715199091825,-808.6,0.00029863,2]
[326651490,1715199091834,-569.29,0.00029863,2]
[326651491,1715199091843,-792.42,0.00029863,2]
[326651492,1715199091852,-2779.81,0.00029863,2]
[326651493,1715199091861,-20490.02,0.00029863,2]
[326651494,1715199091870,-800.11,0.00029863,2]
[326651495,1715199091879,-1308.72,0.00029863,2]
[326651496,1715199091888,-902.39,0.00029863,2]
[326651497,1715199091898,-1399.75,0.00029863,2]
[326651498,1715199091908,-664.75,0.00029863,2]
[326651499,1715199091917,-509.7,0.00029863,2]
[326651500,1715199091926,-1252.54,0.00029863,2]
[326651501,1715199091936,-3456.41,0.00029863,2]
[326651502,1715199091945,-757.25,0.00029863,2]
[326651503,1715199091955,-500.0,0.00029863,2]
[326651504,1715199091964,-864.02,0.00029863,2]
[326651505,1715199091974,-970.11,0.00029863,2]
[326651506,1715199091983,-179000.0,0.000299,2]
[326651507,1715199091993,-620.00000002,0.00029943,2]
[326651508,1715199092002,-5000.0,0.0003,31]
[326651509,1715199092011,-154.58262691,0.0003,4]
[326651510,1715199092020,-213.83653782,0.0003,4]
[326651511,1715199092030,-17193.71694333,0.0003,10]
[326651512,1715199092039,-500.0,0.0003,10]
[326651513,1715199092049,-1416.08460432,0.0003,4]
[326651514,1715199092058,-160.0,0.0003,2]
[326651515,1715199092067,-43765.59153329,0.0003,7]
[326651516,1715199092077,-200.62497993,0.0003,30]
[326651517,1715199092087,-160.0,0.0003,2]
[326651518,1715199092096,-250.0,0.0003,2]
[326651519,1715199092106,-200.85749263,0.0003,30]
[326651520,1715199092115,-154.75239617,0.0003,2]
[326651521,1715199092124,-154.75239617,0.0003,4]
[326651522,1715199092134,-19456.1102432,0.0003,30]
[326651523,1715199092143,-31056.0,0.0003,2]
[326651524,1715199092152,-43011.0621611,0.0003,5]
[326651525,1715199092161,-50006.6348,0.0003,3]
[326651526,1715199092170,-925.0,0.0003,120]
[326651527,1715199092181,-460.0,0.0003,2]
[326651528,1715199092190,-808.90205418,0.0003,7]
[326651529,1715199092199,-259.0,0.0003,2]
[326651530,1715199092209,-268.73838516,0.0003,2]
[326651531,1715199092220,-150.0,0.00030128,2]
[326651532,1715199092230,-650.98,0.00030136,2]
[326651533,1715199092239,-574.0,0.00030136,2]
[326651534,1715199092248,-500.0,0.00030136,2]
[326651535,1715199092263,-571.12,0.00030136,2]
[326651536,1715199092272,-786.55,0.00030136,2]
[326651537,1715199092282,-601.02,0.00030136,2]
[326651538,1715199092291,-1032.78,0.00030136,2]
[326651539,1715199092303,-2277.28,0.00030136,2]
[326651540,1715199092312,-936.19,0.00030136,2]
[326651541,1715199092321,-899.18,0.00030136,2]
[326651542,1715199092408,-1818.87,0.00030136,2]
[326651543,1715199092418,-1908.19,0.00030136,2]
[326651544,1715199092427,-500.0,0.00030136,2]
[326651545,1715199092436,-629.42,0.00030136,2]
[326651546,1715199092446,-527.63,0.00030136,2]
[326651547,1715199092456,-1086.76,0.00030136,2]
[326651548,1715199092465,-530.34,0.00030136,2]
[326651549,1715199092475,-7463.0,0.00030136,2]
[326651550,1715199092484,-950.42,0.00030136,2]
[326651551,1715199092493,-1701.32,0.00030136,2]
[326651552,1715199092502,-997.07,0.00030136,2]
[326651553,1715199092511,-3523.15,0.00030136,2]
[326651554,1715199092523,-505.36,0.00030136,2]
[326651555,1715199092532,-745.46,0.00030136,2]
[326651556,1715199092542,-1757.68,0.00030136,2]
[326651557,1715199092552,-941.12,0.00030136,2]
[326651558,1715199092561,-748.52,0.00030136,2]
[326651559,1715199092571,-2015.2,0.00030136,2]
[326651560,1715199092580,-4323.66,0.00030136,2]
[326651561,1715199092590,-850.5,0.00030136,2]
[326651562,1715199092600,-4309.74,0.00030136,2]
[326651563,1715199092610,-579.32,0.00030136,2]
[326651564,1715199092619,-1439.54,0.00030136,2]
[326651565,1715199092629,-2030.56,0.00030136,2]
[326651566,1715199092639,-949.19,0.00030136,2]
[326651567,1715199092648,-4686.96,0.00030136,2]
[326651568,1715199092658,-7047.1,0.00030136,2]
[326651569,1715199092668,-3516.26,0.00030136,2]
[326651570,1715199092678,-7672.45,0.00030136,2]
[326651571,1715199092688,-559.0,0.00030136,2]
[326651572,1715199092698,-1159.93,0.00030136,2]
[326651573,1715199092707,-1109.77,0.00030136,2]
[326651574,1715199092717,-808.6,0.00030136,2]
[326651575,1715199092729,-569.29,0.00030136,2]
[326651576,1715199092738,-792.42,0.00030136,2]
[326651577,1715199092747,-2779.81,0.00030136,2]
[326651578,1715199092756,-20490.02,0.00030136,2]
[326651579,1715199092765,-800.11,0.00030136,2]
[326651580,1715199092774,-1308.72,0.00030136,2]
[326651581,1715199092783,-902.39,0.00030136,2]
[326651582,1715199092793,-1399.75,0.00030136,2]
[326651583,1715199092802,-664.75,0.00030136,2]
[326651584,1715199092812,-509.7,0.00030136,2]
[326651585,1715199092822,-3456.41,0.00030136,2]
[326651586,1715199092832,-757.25,0.00030136,2]
[326651587,1715199092841,-1252.54,0.00030136,2]
[326651588,1715199092850,-211.29,0.00030136,2]
[326651589,1715199092860,-864.02,0.00030136,2]
[326651590,1715199092870,-970.11,0.00030136,2]
[326651591,1715199092879,-150.0,0.00030397,2]
[326651592,1715199092889,-650.98,0.0003041,2]
[326651593,1715199092899,-574.0,0.0003041,2]
[326651594,1715199092908,-500.0,0.0003041,2]
[326651595,1715199092917,-571.12,0.0003041,2]
[326651596,1715199092926,-786.55,0.0003041,2]
[326651597,1715199092936,-601.02,0.0003041,2]
[326651598,1715199092945,-1032.78,0.0003041,2]
[326651599,1715199092954,-2277.28,0.0003041,2]
[326651600,1715199092963,-936.19,0.0003041,2]
[326651601,1715199092975,-899.18,0.0003041,2]
[326651602,1715199092984,-1818.87,0.0003041,2]
[326651603,1715199092994,-1908.19,0.0003041,2]
[326651604,1715199093009,-500.0,0.0003041,2]
[326651605,1715199093031,-629.42,0.0003041,2]
[326651606,1715199093049,-527.63,0.0003041,2]
[326651607,1715199093072,-1086.76,0.0003041,2]
[326651608,1715199093098,-530.34,0.0003041,2]
[326651609,1715199093116,-7463.0,0.0003041,2]
[326651610,1715199093136,-950.42,0.0003041,2]
[326651611,1715199093150,-1701.32,0.0003041,2]
[326651612,1715199093166,-997.07,0.0003041,2]
[326651613,1715199093183,-3523.15,0.0003041,2]
[326651614,1715199093204,-505.36,0.0003041,2]
[326651615,1715199093217,-745.46,0.0003041,2]
[326651616,1715199093237,-1757.68,0.0003041,2]
[326651617,1715199093253,-941.12,0.0003041,2]
[326651618,1715199093274,-748.52,0.0003041,2]
[326651619,1715199093289,-2015.2,0.0003041,2]
[326651620,1715199093305,-4323.66,0.0003041,2]
[326651621,1715199093319,-850.5,0.0003041,2]
[326651622,1715199093336,-4309.74,0.0003041,2]
[326651623,1715199093351,-579.32,0.0003041,2]
[326651624,1715199093365,-1439.54,0.0003041,2]
[326651625,1715199093379,-2030.56,0.0003041,2]
[326651626,1715199093394,-949.19,0.0003041,2]
[326651627,1715199093408,-4686.96,0.0003041,2]
[326651628,1715199093422,-7047.1,0.0003041,2]
[326651629,1715199093437,-3516.26,0.0003041,2]
[326651630,1715199093451,-7672.45,0.0003041,2]
[326651631,1715199093466,-559.0,0.0003041,2]
[326651632,1715199093483,-1159.93,0.0003041,2]
[326651633,1715199093498,-1109.77,0.0003041,2]
[326651634,1715199093512,-808.6,0.0003041,2]
[326651635,1715199093525,-569.29,0.0003041,2]
[326651636,1715199093539,-792.42,0.0003041,2]
[326651637,1715199093553,-2779.81,0.0003041,2]
[326651638,1715199093567,-20490.02,0.0003041,2]
[326651639,1715199093582,-800.11,0.0003041,2]
[326651640,1715199093596,-1308.72,0.0003041,2]
[326651641,1715199093610,-902.39,0.0003041,2]
[326651642,1715199093624,-1399.75,0.0003041,2]
[326651643,1715199093639,-664.75,0.0003041,2]
[326651644,1715199093653,-509.7,0.0003041,2]
[326651645,1715199093667,-757.25,0.0003041,2]
[326651646,1715199093682,-1252.54,0.0003041,2]
[326651647,1715199093697,-3456.41,0.0003041,2]
[326651648,1715199093710,-864.02,0.0003041,2]
[326651649,1715199093727,-970.11,0.0003041,2]
[326651650,1715199093741,-4783.97696002,0.00030494,30]
[326651651,1715199093755,-150.0,0.00030666,2]
[326651652,1715199093768,-650.98,0.00030684,2]
[326651653,1715199093782,-574.0,0.00030684,2]
[326651654,1715199093796,-530.33367445,0.00030684,2]
[326651655,1715199093811,-571.12,0.00030684,2]
[326651656,1715199093826,-786.55,0.00030684,2]
[326651657,1715199093839,-601.02,0.00030684,2]
[326651658,1715199093853,-1032.78,0.00030684,2]
[326651659,1715199093868,-2277.28,0.00030684,2]
[326651660,1715199093882,-936.19,0.00030684,2]
[326651661,1715199093898,-899.18,0.00030684,2]
[326651662,1715199093915,-1818.87,0.00030684,2]
[326651663,1715199093931,-1908.19,0.00030684,2]
[326651664,1715199093947,-500.0,0.00030684,2]
[326651665,1715199093962,-629.42,0.00030684,2]
[326651666,1715199094088,-527.63,0.00030684,2]
[326651667,1715199094102,-1086.76,0.00030684,2]
[326651668,1715199094112,-530.34,0.00030684,2]
[326651669,1715199094122,-7463.0,0.00030684,2]
[326651670,1715199094131,-950.42,0.00030684,2]
[326651671,1715199094141,-1701.32,0.00030684,2]
[326651672,1715199094150,-997.07,0.00030684,2]
[326651673,1715199094160,-3523.15,0.00030684,2]
[326651674,1715199094170,-505.36,0.00030684,2]
[326651675,1715199094179,-745.46,0.00030684,2]
[326651676,1715199094188,-1757.68,0.00030684,2]
[326651677,1715199094198,-941.12,0.00030684,2]
[326651678,1715199094208,-748.52,0.00030684,2]
[326651679,1715199094218,-2015.2,0.00030684,2]
[326651680,1715199094230,-4323.66,0.00030684,2]
[326651681,1715199094239,-850.5,0.00030684,2]
[326651682,1715199094249,-4309.74,0.00030684,2]
[326651683,1715199094259,-1439.54,0.00030684,2]
[326651684,1715199094272,-579.32,0.00030684,2]
[326651685,1715199094282,-2030.56,0.00030684,2]
[326651686,1715199094292,-949.19,0.00030684,2]
[326651687,1715199094302,-4686.96,0.00030684,2]
[326651688,1715199094312,-7047.1,0.00030684,2]
[326651689,1715199094322,-3516.26,0.00030684,2]
[326651690,1715199094332,-7672.45,0.00030684,2]
[326651691,1715199094341,-559.0,0.00030684,2]
[326651692,1715199094352,-1159.93,0.00030684,2]
[326651693,1715199094361,-1109.77,0.00030684,2]
[326651694,1715199094372,-808.6,0.00030684,2]
[326651695,1715199094381,-569.29,0.00030684,2]